fUST/lending_fUST_20250726
["ID","MTS","AMOUNT","RATE_DAILY","PERIOD"]
[375125393,1753535459000,-1754.0,0.00023609,3]
[375125395,1753535459009,-1754.0,0.00023609,3]
[375125397,1753535459019,-324.0,0.00023609,3]
[375125399,1753535459029,-324.0,0.00023609,3]
[375125401,1753535459038,-324.0,0.00023609,3]
[375125403,1753535459047,-1754.0,0.00023609,3]
[375125405,1753535459057,-324.0,0.00023609,3]
[375125407,1753535459066,-324.0,0.00023609,3]
[375125409,1753535459076,-324.0,0.00023609,3]
[375125411,1753535459085,-324.0,0.00023609,3]
[375125413,1753535459094,-1754.0,0.00023609,3]
[375125415,1753535459104,-324.0,0.00023609,3]
[375125417,1753535459113,-324.0,0.00023609,3]
[375125419,1753535459122,-1754.0,0.00023609,3]
[375125421,1753535459132,-1754.0,0.00023609,3]
[375125423,1753535459141,-1754.0,0.00023609,3]
[375125425,1753535459151,-337.05611235,0.00023609,3]
[375125427,1753535459161,-529.55405847,0.00023609,3]
[375125429,1753535459171,-1754.0,0.00023609,3]
[375125431,1753535459181,-1754.0,0.00023609,3]
[375125434,1753535459191,-1754.0,0.00023609,3]
[375125436,1753535459201,-1754.0,0.00023609,3]
[375125437,1753535459210,-1754.0,0.00023609,3]
[375125440,1753535459220,-1754.0,0.00023609,3]
[375125442,1753535459231,-1754.0,0.00023609,3]
[375125444,1753535459242,-1754.0,0.00023609,3]
[375125446,1753535459254,-1754.0,0.00023609,3]
[375125448,1753535459264,-1754.0,0.00023609,3]
[375125450,1753535459275,-1754.0,0.00023609,3]
[375125452,1753535459286,-1754.0,0.00023609,3]
[375125453,1753535459295,-1754.0,0.00023609,3]
[375125455,1753535459305,-1754.0,0.00023609,3]
[375125457,1753535459315,-1754.0,0.00023609,3]
[375125460,1753535459325,-1754.0,0.00023609,3]
[375125462,1753535459334,-1754.0,0.00023609,3]
[375125464,1753535459344,-152.0,0.00023609,3]
[375125466,1753535459354,-152.0,0.00023609,3]
[375125467,1753535459363,-152.0,0.00023609,3]
[375125470,1753535459372,-152.0,0.00023609,3]
[375125472,1753535459382,-152.0,0.00023609,3]
[375125474,1753535459391,-152.0,0.00023609,3]
[375125476,1753535459401,-152.0,0.00023609,3]
[375125477,1753535459410,-152.0,0.00023609,3]
[375125479,1753535459419,-152.0,0.00023609,3]
[375125481,1753535459429,-152.0,0.00023609,3]
[375125484,1753535459441,-152.0,0.00023609,3]
[375125486,1753535459451,-324.0,0.00023609,3]
[375125488,1753535459461,-152.0,0.00023609,3]
[375125490,1753535459470,-324.0,0.00023609,3]
[375125492,1753535459480,-152.0,0.00023609,3]
[375125494,1753535459490,-324.0,0.00023609,3]
[375125496,1753535459500,-152.0,0.00023609,3]
[375125498,1753535459509,-324.0,0.00023609,3]
[375125500,1753535459519,-152.0,0.00023609,3]
[375125502,1753535459529,-324.0,0.00023609,3]
[375125504,1753535459538,-152.0,0.00023609,3]
[375125506,1753535459548,-324.0,0.00023609,3]
[375125508,1753535459557,-152.0,0.00023609,3]
[375125510,1753535459567,-152.0,0.00023609,3]
[375125512,1753535459577,-152.0,0.00023609,3]
[375125514,1753535459587,-152.0,0.00023609,3]
[375125516,1753535459597,-152.0,0.00023609,3]
[375125518,1753535459609,-152.0,0.00023609,3]
[375125520,1753535459619,-152.0,0.00023609,3]
[375125522,1753535459628,-152.0,0.00023609,3]
[375125524,1753535459637,-152.0,0.00023609,3]
[375125526,1753535459646,-152.0,0.00023609,3]
[375125528,1753535459656,-152.0,0.00023609,3]
[375125530,1753535459665,-152.0,0.00023609,3]
[375125532,1753535459675,-152.0,0.00023609,3]
[375125534,1753535459684,-152.0,0.00023609,3]
[375125536,1753535459694,-152.0,0.00023609,3]
[375125538,1753535459703,-152.0,0.00023609,3]
[375125540,1753535459713,-152.0,0.00023609,3]
[375125542,1753535459722,-152.0,0.00023609,3]
[375125544,1753535459731,-152.0,0.00023609,3]
[375125546,1753535459741,-177.319409,0.00023609,3]
[375125548,1753535459750,-151.0,0.00023609,7]
[375125550,1753535459759,-151.0,0.00023609,7]
[375125552,1753535459768,-151.0,0.00023609,7]
[375125554,1753535459777,-207.506333,0.00023609,7]
[375125556,1753535459786,-151.0,0.00023609,7]
[375125558,1753535459796,-151.0,0.00023609,7]
[375125560,1753535459805,-151.0,0.00023609,7]
[375125562,1753535459815,-151.0,0.00023609,7]
[375125564,1753535459824,-447.763606,0.00023609,7]
[375125566,1753535459833,-447.763606,0.00023609,7]
[375125568,1753535459842,-202.306236,0.00023609,7]
[375125570,1753535459852,-202.306236,0.00023609,7]
[375125572,1753535459861,-151.0,0.00023609,7]
[375125574,1753535459871,-160.0,0.0002361,3]
[375125576,1753535459880,-341.118266,0.00023626,8]
[375125578,1753535459890,-160.0,0.000237,3]
[375125580,1753535459900,-160.0,0.000237,3]
[375125586,1753535459972,-214.8008262,0.000237,3]
[375125587,1753535459982,-160.0,0.000237,3]
[375125588,1753535459991,-160.0,0.000237,3]
[375125589,1753535460001,-476.98041219,0.000237,3]
[375125590,1753535460011,-231.25662632,0.000237,3]
[375125591,1753535460021,-312.16666667,0.000237,3]
[375125592,1753535460031,-549.11588717,0.00023718,2]
[375125593,1753535460041,-2196.46354869,0.00023718,2]
[375125594,1753535460051,-806.09192829,0.00023718,2]
[375125595,1753535460062,-3221.14334544,0.00023718,2]
[375125596,1753535460072,-202.306236,0.00023718,7]
[375125597,1753535460082,-202.306236,0.00023718,7]
[375125598,1753535460091,-3916.90177952,0.00023737,2]
[375125599,1753535460101,-184.8816,0.00023744,2]
[375125600,1753535460110,-240.4,0.00023752,6]
[375125602,1753535460120,-409.0,0.00023766,2]
[375125604,1753535460131,-409.0,0.00023768,2]
[375125606,1753535460140,-409.0,0.0002378,2]
[375125609,1753535460154,-800.0,0.00023787,2]
[375125611,1753535460163,-5898.85,0.00023829,2]
[375125613,1753535460173,-460.0,0.00023829,2]
[375125615,1753535460183,-460.0,0.00023829,2]
[375125617,1753535460194,-654.15,0.0002383,2]
[375125619,1753535460204,-460.0,0.0002383,2]
[375125621,1753535460214,-2404.1,0.0002383,2]
[375125623,1753535460223,-460.0,0.0002383,2]
[375125625,1753535460234,-1400.9,0.0002383,2]
[375125627,1753535460244,-659.55,0.0002383,2]
[375125629,1753535460253,-574.94,0.0002383,2]
[375125631,1753535460263,-820.48,0.0002383,2]
[375125633,1753535460273,-2915.78,0.00023831,2]
[375125635,1753535460283,-460.0,0.00023831,2]
[375125637,1753535460293,-460.0,0.00023831,2]
[375125639,1753535460303,-460.0,0.00023831,2]
[375125641,1753535460313,-647.44,0.00023831,2]
[375125643,1753535460323,-976.91,0.00023831,2]
[375125645,1753535460333,-423.06604322,0.00023831,2]
[375125647,1753535460342,-594.16,0.00023831,2]
[375125649,1753535460352,-549.7,0.00023832,2]
[375125650,1753535460362,-209.98085329,0.00023832,2]
[375125653,1753535460372,-663.51,0.00023832,2]
[375125654,1753535460382,-651.27,0.00023832,2]
[375125656,1753535460393,-522.78,0.00023832,2]
[375125659,1753535460404,-460.0,0.00023832,2]
[375125660,1753535460414,-609.67,0.00023833,2]
[375125663,1753535460424,-460.0,0.00023833,2]
[375125665,1753535460434,-588.79,0.00023833,2]
[375125666,1753535460448,-460.0,0.00023833,2]
[375125668,1753535460458,-587.19,0.00023833,2]
[375125670,1753535460468,-1056.07,0.00023833,2]
[375125672,1753535460478,-460.0,0.00023833,2]
[375125675,1753535460489,-5014.67,0.00023833,2]
[375125676,1753535460499,-507.61,0.00023833,2]
[375125679,1753535460509,-1748.22,0.00023833,2]
[375125681,1753535460520,-3082.33,0.00023833,2]
[375125683,1753535460530,-622.79401653,0.00023833,3]
[375125684,1753535460540,-1065.56,0.00023834,2]
[375125687,1753535460550,-1505.2,0.00023834,2]
[375125688,1753535460560,-2131.83,0.00023834,2]
[375125690,1753535460569,-460.0,0.00023834,2]
[375125692,1753535460579,-829.15,0.00023834,2]
[375125694,1753535460588,-1514.66,0.00023834,2]
[375125696,1753535460598,-2640.4,0.00023834,2]
[375125698,1753535460607,-260.25231298,0.00023835,2]
[375125700,1753535460619,-236.55727065,0.00023835,2]
[375125702,1753535460630,-460.0,0.00023835,2]
[375125704,1753535460639,-472.65,0.00023835,2]
[375125706,1753535460649,-2088.78,0.00023835,2]
[375125708,1753535460659,-460.0,0.00023835,2]
[375125710,1753535460669,-460.0,0.00023835,2]
[375125712,1753535460678,-678.0,0.00023836,2]
[375125714,1753535460688,-151.0,0.00023836,2]
[375125716,1753535460698,-540.0,0.00023836,2]
[375125718,1753535460707,-292.0,0.00023836,2]
[375125720,1753535460717,-309.27,0.00023837,2]
[375125722,1753535460727,-760.0,0.00023866,2]
[375125724,1753535460736,-150.0,0.000239,2]
[375125726,1753535460746,-5000.0,0.00023942,3]
[375125728,1753535460756,-3916.90177952,0.00023966,2]
[375125730,1753535460765,-409.0,0.00023971,2]
[375125732,1753535460775,-151.0,0.00024,5]
[375125734,1753535460785,-576.617764,0.00024,2]
[375125736,1753535460794,-160.0,0.00024,7]
[375125738,1753535460804,-526.41699184,0.00024,7]
[375125740,1753535460813,-160.0,0.00024,7]
[375125742,1753535460823,-231.25662632,0.00024,7]
[375125744,1753535460833,-840.57612966,0.00024,7]
[375125746,1753535460842,-365.70832091,0.00024027,30]
[375125748,1753535460852,-409.0,0.00024061,2]
[375125750,1753535460861,-151.0,0.000241,7]
[375125752,1753535460871,-857.93313,0.000241,5]
[375125754,1753535460882,-1000.0,0.000241,2]
[375125756,1753535460891,-409.0,0.00024101,2]
[375125758,1753535460901,-5898.85,0.00024103,2]
[375125760,1753535460911,-460.0,0.00024103,2]
[375125762,1753535460921,-654.15,0.00024104,2]
[375125764,1753535460930,-460.0,0.00024104,2]
[375125766,1753535460940,-2404.1,0.00024104,2]
[375125768,1753535460950,-460.0,0.00024104,2]
[375125770,1753535460959,-1400.9,0.00024104,2]
[375125772,1753535460969,-659.55,0.00024104,2]
[375125780,1753535461039,-574.94,0.00024104,2]
[375125782,1753535461048,-820.48,0.00024104,2]
[375125784,1753535461059,-2915.78,0.00024105,2]
[375125786,1753535461068,-486.14115808,0.00024105,2]
[375125788,1753535461077,-225.85,0.00024105,2]
[375125790,1753535461087,-460.0,0.00024105,2]
[375125792,1753535461096,-647.44,0.00024105,2]
[375125794,1753535461106,-976.91,0.00024105,2]
[375125796,1753535461115,-594.16,0.00024105,2]
[375125798,1753535461125,-549.7,0.00024106,2]
[375125800,1753535461135,-663.51,0.00024106,2]
[375125802,1753535461145,-651.27,0.00024106,2]
[375125803,1753535461154,-522.78,0.00024106,2]
[375125805,1753535461164,-460.0,0.00024106,2]
[375125807,1753535461173,-609.67,0.00024107,2]
[375125809,1753535461183,-460.0,0.00024107,2]
[375125811,1753535461193,-588.79,0.00024107,2]
[375125813,1753535461202,-460.0,0.00024107,2]
[375125815,1753535461212,-587.19,0.00024107,2]
[375125817,1753535461221,-1056.07,0.00024107,2]
[375125819,1753535461230,-460.0,0.00024107,2]
[375125821,1753535461240,-5014.67,0.00024107,2]
[375125823,1753535461250,-507.61,0.00024107,2]
[375125825,1753535461259,-1748.22,0.00024107,2]
[375125827,1753535461269,-3082.33,0.00024107,2]
[375125829,1753535461277,-151.0,0.00024108,7]
[375125831,1753535461287,-151.0,0.00024108,7]
[375125833,1753535461296,-1065.56,0.00024108,2]
[375125835,1753535461306,-1505.2,0.00024108,2]
[375125837,1753535461315,-2131.83,0.00024108,2]
[375125839,1753535461324,-201.41108947,0.00024108,2]
[375125841,1753535461334,-829.15,0.00024108,2]
[375125843,1753535461344,-1514.66,0.00024108,2]
[375125845,1753535461354,-2640.4,0.00024108,2]
[375125847,1753535461365,-151.0,0.00024109,7]
[375125849,1753535461375,-151.0,0.00024109,7]
[375125851,1753535461385,-240.4,0.00024109,6]
[375125853,1753535461394,-460.0,0.00024109,2]
[375125855,1753535461403,-472.65,0.00024109,2]
[375125857,1753535461412,-2088.78,0.00024109,2]
[375125859,1753535461422,-460.0,0.00024109,2]
[375125861,1753535461432,-460.0,0.00024109,2]
[375125863,1753535461441,-678.0,0.0002411,2]
[375125865,1753535461450,-198.0,0.0002411,2]
[375125867,1753535461462,-540.0,0.0002411,2]
[375125869,1753535461472,-191.239735,0.0002411,7]
[375125871,1753535461485,-151.0,0.0002411,7]
[375125876,1753535461522,-4500.0,0.00024156,2]
[375125879,1753535461544,-409.0,0.00024174,2]
[375125883,1753535461566,-5000.0,0.00024178,2]
[375125886,1753535461591,-5000.0,0.00024178,2]
[375125890,1753535461613,-447.763606,0.00024178,7]
[375125893,1753535461637,-447.763606,0.00024178,7]
[375125895,1753535461653,-852.91,0.00024186,4]
[375125898,1753535461672,-3916.90177952,0.00024194,2]
[375125901,1753535461692,-202.306236,0.00024196,7]
[375125905,1753535461714,-202.306236,0.00024196,7]
[375125907,1753535461727,-409.0,0.00024196,2]
[375125910,1753535461746,-151.0,0.000242,7]
[375125913,1753535461762,-852.91,0.00024286,5]
[375125915,1753535461780,-309.27,0.00024297,2]
[375125918,1753535461794,-429.4362082,0.00024329,2]
[375125921,1753535461813,-409.0,0.00024348,2]
[375125924,1753535461831,-429.674968,0.00024373,2]
[375125926,1753535461848,-429.9056391,0.00024373,2]
[375125929,1753535461865,-429.9056391,0.00024373,2]
[375125932,1753535461880,-5898.85,0.00024377,2]
[375125934,1753535461896,-460.0,0.00024377,2]
[375125937,1753535461912,-654.15,0.00024378,2]
[375125940,1753535461929,-460.0,0.00024378,2]
[375125942,1753535461944,-2404.1,0.00024378,2]
[375125945,1753535461959,-460.0,0.00024378,2]
[375125947,1753535461974,-1400.9,0.00024378,2]
[375125950,1753535461990,-659.55,0.00024378,2]
[375125952,1753535461999,-574.94,0.00024378,2]
[375125954,1753535462009,-820.48,0.00024378,2]
[375125956,1753535462018,-2915.78,0.00024379,2]
[375125958,1753535462028,-194.10092616,0.00024379,2]
[375125960,1753535462038,-647.44,0.00024379,2]
[375125962,1753535462048,-976.91,0.00024379,2]
[375125964,1753535462057,-594.16,0.00024379,2]
[375125966,1753535462068,-549.7,0.0002438,2]
[375125968,1753535462077,-663.51,0.0002438,2]
[375125970,1753535462087,-651.27,0.0002438,2]
[375125972,1753535462097,-522.78,0.0002438,2]
[375125974,1753535462107,-460.0,0.0002438,2]
[375125976,1753535462117,-609.67,0.00024381,2]
[375125978,1753535462127,-460.0,0.00024381,2]
[375125980,1753535462137,-588.79,0.00024381,2]
[375125982,1753535462147,-460.0,0.00024381,2]
[375125984,1753535462157,-587.19,0.00024381,2]
[375125986,1753535462167,-1056.07,0.00024381,2]
[375125988,1753535462177,-460.0,0.00024381,2]
[375125996,1753535462358,-5014.67,0.00024381,2]
[375125997,1753535462380,-507.61,0.00024381,2]
[375125998,1753535462392,-1748.22,0.00024381,2]
[375125999,1753535462401,-3082.33,0.00024381,2]
[375126000,1753535462411,-1065.56,0.00024382,2]
[375126001,1753535462421,-1505.2,0.00024382,2]
[375126002,1753535462431,-2131.83,0.00024382,2]
[375126003,1753535462440,-829.15,0.00024382,2]
[375126004,1753535462451,-1514.66,0.00024382,2]
[375126005,1753535462470,-2640.4,0.00024382,2]
[375126006,1753535462479,-460.0,0.00024383,2]
[375126007,1753535462487,-472.65,0.00024383,2]
[375126008,1753535462497,-2088.78,0.00024383,2]
[375126009,1753535462506,-460.0,0.00024383,2]
[375126010,1753535462515,-460.0,0.00024383,2]
[375126011,1753535462524,-678.0,0.00024384,2]
[375126012,1753535462533,-540.0,0.00024384,2]
[375126013,1753535462543,-852.91,0.00024386,5]
[375126014,1753535462552,-2597.28,0.000244,7]
[375126015,1753535462561,-860.0,0.00024414,2]
[375126016,1753535462570,-3916.90177952,0.00024422,2]
[375126017,1753535462578,-409.0,0.00024476,2]
[375126018,1753535462587,-852.91,0.00024486,3]
[375126019,1753535462597,-4695.47,0.000245,7]
[375126020,1753535462606,-151.0,0.000245,9]
[375126021,1753535462615,-151.0,0.000245,7]
[375126022,1753535462624,-45954.63,0.000245,2]
[375126023,1753535462635,-409.0,0.00024533,2]
[375126025,1753535462644,-153.0,0.00024548,2]
[375126027,1753535462654,-153.0,0.00024548,2]
[375126029,1753535462664,-153.0,0.00024548,2]
[375126031,1753535462674,-852.91,0.00024586,2]
[375126033,1753535462683,-1558.17,0.000246,7]
[375126035,1753535462694,-3916.90177952,0.00024651,2]
[375126037,1753535462704,-5898.85,0.00024651,2]
[375126039,1753535462714,-460.0,0.00024651,2]
[375126040,1753535462724,-654.15,0.00024652,2]
[375126043,1753535462734,-2404.1,0.00024652,2]
[375126044,1753535462743,-460.0,0.00024652,2]
[375126046,1753535462753,-1400.9,0.00024652,2]
[375126048,1753535462763,-659.55,0.00024652,2]
[375126050,1753535462772,-574.94,0.00024652,2]
[375126052,1753535462782,-820.48,0.00024652,2]
[375126054,1753535462791,-2915.78,0.00024653,2]
[375126056,1753535462800,-647.44,0.00024653,2]
[375126059,1753535462810,-976.91,0.00024653,2]
[375126060,1753535462819,-594.16,0.00024653,2]
[375126062,1753535462829,-549.7,0.00024654,2]
[375126064,1753535462838,-663.51,0.00024654,2]
[375126066,1753535462847,-651.27,0.00024654,2]
[375126068,1753535462857,-522.78,0.00024654,2]
[375126070,1753535462866,-460.0,0.00024654,2]
[375126072,1753535462876,-609.67,0.00024655,2]
[375126074,1753535462885,-460.0,0.00024655,2]
[375126076,1753535462897,-588.79,0.00024655,2]
[375126078,1753535462907,-460.0,0.00024655,2]
[375126080,1753535462917,-587.19,0.00024655,2]
[375126083,1753535462926,-1056.07,0.00024655,2]
[375126084,1753535462936,-460.0,0.00024655,2]
[375126087,1753535462945,-5014.67,0.00024655,2]
[375126088,1753535462955,-507.61,0.00024655,2]
[375126090,1753535462965,-1748.22,0.00024655,2]
[375126092,1753535462975,-3082.33,0.00024655,2]
[375126095,1753535462985,-1065.56,0.00024656,2]
[375126096,1753535462995,-1505.2,0.00024656,2]
[375126098,1753535463004,-2131.83,0.00024656,2]
[375126100,1753535463014,-829.15,0.00024656,2]
[375126102,1753535463024,-1514.66,0.00024656,2]
[375126105,1753535463034,-2640.4,0.00024656,2]
[375126107,1753535463044,-151.0,0.00024657,7]
[375126108,1753535463053,-151.0,0.00024657,7]
[375126111,1753535463063,-151.0,0.00024657,7]
[375126112,1753535463073,-151.0,0.00024657,7]
[375126114,1753535463083,-151.0,0.00024657,7]
[375126116,1753535463093,-500.0,0.00024657,2]
[375126118,1753535463102,-500.0,0.00024657,2]
[375126120,1753535463112,-500.0,0.00024657,2]
[375126122,1753535463121,-500.0,0.00024657,2]
[375126124,1753535463131,-509.37948221,0.00024657,2]
[375126126,1753535463140,-500.0,0.00024657,2]
[375126128,1753535463150,-500.0,0.00024657,2]
[375126130,1753535463160,-500.0,0.00024657,2]
[375126132,1753535463170,-500.0,0.00024657,2]
[375126134,1753535463179,-500.0,0.00024657,2]
[375126135,1753535463188,-500.0,0.00024657,2]
[375126137,1753535463198,-500.0,0.00024657,2]
[375126139,1753535463208,-500.0,0.00024657,2]
[375126141,1753535463217,-500.0,0.00024657,2]
[375126142,1753535463227,-500.0,0.00024657,2]
[375126144,1753535463236,-460.0,0.00024657,2]
[375126146,1753535463246,-472.65,0.00024657,2]
[375126148,1753535463257,-2088.78,0.00024657,2]
[375126150,1753535463266,-460.0,0.00024657,2]
[375126152,1753535463275,-460.0,0.00024657,2]
[375126154,1753535463285,-678.0,0.00024658,2]
[375126156,1753535463294,-540.0,0.00024658,2]
[375126158,1753535463304,-425.0,0.00024658,2]
[375126160,1753535463312,-852.91,0.00024686,3]
[375126162,1753535463322,-409.0,0.0002469,2]
[375126163,1753535463331,-552.26756637,0.0002469,10]
[375126165,1753535463341,-151.0,0.000247,7]
[375126167,1753535463350,-151.0,0.000247,7]
[375126169,1753535463361,-151.0,0.000247,7]
[375126171,1753535463371,-151.0,0.000247,7]
[375126173,1753535463380,-447.763606,0.000247,7]
[375126175,1753535463389,-447.763606,0.000247,7]
[375126177,1753535463399,-1999.99000004,0.00024704,2]
[375126179,1753535463409,-409.0,0.00024713,2]
[375126181,1753535463418,-309.27,0.00024756,2]
[375126183,1753535463428,-5000.0,0.00024779,2]
[375126185,1753535463438,-852.91,0.00024786,4]
[375126187,1753535463447,-33150.23774015,0.0002479,2]
[375126190,1753535463473,-617.3,0.00023557,2]
[375126192,1753535463482,-1541.35048303,0.0002479,2]
[375126194,1753535463494,-1275.0,0.0002479,2]
[375126207,1753535463619,-151.0,0.00019994,2]
[375126209,1753535463628,-151.0,0.00019999,2]
[375126211,1753535463638,-160.0,0.0002129,3]
[375126213,1753535463648,-617.3,0.00023831,2]
[375126215,1753535463657,-617.3,0.00024105,2]
[375126217,1753535463668,-617.3,0.00024379,2]
[375126219,1753535463677,-617.3,0.00024653,2]
[375126221,1753535463689,-5772.51119193,0.0002479,2]
[375126224,1753535463709,-460.0,0.0002027,2]
[375126226,1753535463719,-7324.01890026,0.0002479,2]
[375126228,1753535463730,-936.88168463,0.0002479,2]
[375126230,1753535463742,-151.0,0.0002479,7]
[375126232,1753535463751,-203.009031,0.0002479,7]
[375126234,1753535463761,-151.42697283,0.000248,30]
[375126236,1753535463771,-14444.2243468,0.000248,2]
[375126239,1753535463782,-34725.20935752,0.000248,2]
[375126266,1753535464061,-431.28408128,0.00019178,2]
[375126268,1753535464071,-461.95564146,0.00019178,2]
[375126270,1753535464081,-460.0,0.00019448,2]
[375126272,1753535464090,-460.0,0.00019448,2]
[375126274,1753535464100,-460.0,0.00019722,2]
[375126276,1753535464109,-460.0,0.00019722,2]
[375126278,1753535464118,-151.0,0.00020272,2]
[375126280,1753535464129,-460.0,0.00020544,2]
[375126282,1753535464139,-151.0,0.00020546,2]
[375126283,1753535464148,-460.0,0.00020818,2]
[375126285,1753535464157,-151.0,0.0002082,2]
[375126287,1753535464167,-1270.78875051,0.00021057,2]
[375126289,1753535464177,-460.0,0.00021092,2]
[375126291,1753535464187,-151.0,0.00021093,2]
[375126293,1753535464196,-460.0,0.00021366,2]
[375126295,1753535464206,-460.0,0.0002164,2]
[375126297,1753535464217,-460.0,0.00021914,2]
[375126299,1753535464226,-460.0,0.00022188,2]
[375126301,1753535464236,-460.0,0.00022462,2]
[375126303,1753535464245,-460.0,0.00022736,2]
[375126305,1753535464255,-397.99319594,0.0002301,2]
[375126307,1753535464264,-28854.09377626,0.000248,2]
[375126309,1753535464277,-796.92509474,0.000248,2]
[375127705,1753536286295,159.906694,0.00013699,2]
[375127706,1753536431081,-150.0,0.000189,2]
[375127707,1753536431103,-464.08543117,0.00019078,2]
[375127708,1753536452097,-488.61456359,0.00019078,2]
[375127733,1753536632235,-895.08088403,0.00019078,2]
[375127734,1753536632245,-38.01902975,0.00019078,2]
[375127739,1753536638080,-14015.86271056,0.00019078,2]
[375127740,1753536638247,-8546.64469751,0.00019078,2]
[375127741,1753536638257,-460.0,0.00019178,2]
[375127742,1753536638267,-1000.0,0.00019178,2]
[375127743,1753536638277,-460.0,0.00019178,2]
[375127744,1753536638288,-460.0,0.00019178,2]
[375127745,1753536638298,-460.0,0.00019178,2]
[375127746,1753536638308,-460.0,0.00019178,2]
[375127747,1753536638318,-460.0,0.00019178,2]
[375127748,1753536638327,-460.0,0.00019178,2]
[375127749,1753536638337,-460.0,0.00019178,2]
[375127750,1753536638347,-460.0,0.00019178,2]
[375127751,1753536638356,-460.0,0.00019178,2]
[375127752,1753536638366,-460.0,0.00019178,2]
[375127753,1753536638376,-460.0,0.00019178,2]
[375127754,1753536638387,-460.0,0.00019178,2]
[375127755,1753536638396,-331.77340245,0.00019178,2]
[375127756,1753536638406,-460.0,0.00019178,2]
[375127757,1753536638415,-460.0,0.00019178,2]
[375127758,1753536638425,-460.0,0.00019178,2]
[375127759,1753536638435,-460.0,0.00019178,2]
[375127760,1753536638448,-460.0,0.00019178,2]
[375127761,1753536638458,-460.0,0.00019178,2]
[375127762,1753536638468,-460.0,0.00019178,2]
[375127763,1753536638477,-460.0,0.00019178,2]
[375127764,1753536638487,-460.22698712,0.00019178,2]
[375127765,1753536638496,-460.0,0.00019178,2]
[375127766,1753536638506,-460.0,0.00019178,2]
[375127767,1753536638515,-460.0,0.00019178,2]
[375127768,1753536638525,-460.0,0.00019178,2]
[375127769,1753536638534,-460.0,0.00019178,2]
[375127770,1753536638544,-460.0,0.00019178,2]
[375127771,1753536638553,-460.0,0.00019178,2]
[375127772,1753536638563,-460.0,0.00019178,2]
[375127773,1753536638572,-460.0,0.00019178,2]
[375127774,1753536638582,-460.0,0.00019178,2]
[375127775,1753536638592,-460.0,0.00019178,2]
[375127776,1753536638601,-332.54042442,0.00019178,2]
[375127777,1753536638611,-460.0,0.00019178,2]
[375127778,1753536638620,-460.0,0.00019178,2]
[375127779,1753536638630,-460.0,0.00019178,2]
[375127780,1753536638640,-460.0,0.00019178,2]
[375127781,1753536638650,-462.32364681,0.00019178,2]
[375127782,1753536638659,-460.0,0.00019178,2]
[375127783,1753536638668,-460.0,0.00019178,2]
[375127784,1753536638678,-460.0,0.00019178,2]
[375127785,1753536638688,-460.0,0.00019178,2]
[375127786,1753536638697,-460.0,0.00019178,2]
[375127787,1753536638707,-460.0,0.00019178,2]
[375127788,1753536638717,-460.0,0.00019178,2]
[375127789,1753536638726,-460.0,0.00019178,2]
[375127790,1753536638736,-460.0,0.00019178,2]